[Event "Hungary Olimpic Hopes 2022"]
[Site "Tapolca"]
[Date "2022.06.26"]
[Round "7.18"]
[White "Szollosi, Balazs"]
[Black "Molnar-Saska, Tamas"]
[Result "0-1"]
[ECO "B02"]
[WhiteElo "1294"]
[BlackElo "1458"]
[Annotator "NA RC"]
[PlyCount "120"]
[EventDate "2022.06.23"]
[EventType "swiss"]
[EventCountry "HUN"]
[SourceTitle "playchess.com"]
[Source "ChessBase"]
[SourceQuality "1"]
[TimeControl "5400+30"]

1. e4 {[%emt 0:30:03]} Nf6 {[%emt 0:30:09]} 2. Nc3 {[%emt 0:00:09]} d5 {[%emt 0:00:13]} 3. e5 {[%emt 0:00:34]} d4 {[%emt 0:00:08]} 4. exf6 {[%emt 0:00:42]} dxc3 {[%emt 0:00:09]} 5. bxc3 {[%emt 0:00:55]} exf6 {[%emt 0:01:22]} 6. d4 {[%emt 0:00:09]} Bd6 {[%emt 0:00:53]} 7. Bc4 {[%emt 0:01:26]} O-O {[%emt 0:01:01]} 8. Nf3 {[%emt 0:00:33]} Re8+ {[%emt 0:00:32]} 9. Be3 {[%emt 0:00:20]} Bf4 {[%emt 0:00:52]} 10. Qd2 {[%emt 0:01:31]} Bg4 {[%emt 0:01:35]} 11. O-O {[%emt 0:01:00]} Bxe3 {[%emt 0:02:32]} 12. fxe3 {[%emt 0:00:29]} Nc6 {[%emt 0:01:41]} 13. Rae1 {[%emt 0:01:12]} Bxf3 {[%emt 0:01:41]} 14. Rxf3 {[%emt 0:00:15]} Ne5 {[%emt 0:00:09]} 15. Rh3 {[%emt 0:02:31]} Nxc4 {[%emt 0:01:39]} 16. Qd3 {[%emt 0:00:55]} Nd6 {[%emt 0:01:19]} 17. Qxh7+ Kf8 18. Qh8+ {[%emt 0:00:52]} Ke7 {[%emt 0:04:14]} 19. Qxg7 {[%emt 0:00:47]} Rg8 20. Qh6 {[%emt 0:05:54]} Rh8 {[%emt 0:01:23]} 21. Qf4 {[%emt 0:00:26]} Rxh3 {[%emt 0:00:27]} 22. gxh3 {[%emt 0:00:14]} Qg8+ {[%emt 0:00:21]} 23. Kh1 {[%emt 0:00:43]} Qg5 {[%emt 0:02:32]} 24. Qxg5 {[%emt 0:01:04]} fxg5 {[%emt 0:00:17]} 25. e4 Rf8 26. e5 {[%emt 0:02:02]} Nc4 {[%emt 0:07:12]} 27. Rg1 {[%emt 0:01:12]} f6 {[%emt 0:02:26]} 28. exf6+ {[%emt 0:00:53]} Kxf6 {[%emt 0:00:39]} 29. Rf1+ {[%emt 0:00:47]} Kg7 30. Rg1 {[%emt 0:00:33]} Kh6 {[%emt 0:00:38]} 31. Re1 {[%emt 0:01:00]} Rf7 {[%emt 0:02:37]} 32. Re6+ {[%emt 0:01:43]} Kg7 {[%emt 0:05:19]} 33. Re2 {[%emt 0:01:19]} Nb6 {[%emt 0:01:36]} 34. Kg2 {[%emt 0:00:42]} Nd5 {[%emt 0:00:38]} 35. Re5 {[%emt 0:01:40]} Nxc3 {[%emt 0:04:13]} 36. Rxg5+ {[%emt 0:00:17]} Kh6 {[%emt 0:02:43]} 37. Rg3 {[%emt 0:01:02]} Rg7 {[%emt 0:01:09]} 38. a3 {[%emt 0:00:35]} Nb5 {[%emt 0:00:37]} 39. c3 {[%emt 0:01:24]} Nxc3 {[%emt 0:00:38]} 40. Kf3 {[%emt 0:00:34]} Rxg3+ {[%emt 0:00:12]} 41. hxg3 {[%emt 0:00:16]} Nb5 {[%emt 0:00:13]} 42. h4 {[%emt 0:01:11]} Nxd4+ {[%emt 0:00:54]} 43. Ke4 Nb5 {[%emt 0:00:58]} 44. g4 {[%emt 0:00:50]} Nxa3 45. Kf5 {[%emt 0:00:16]} Kg7 {[%emt 0:01:44]} 46. g5 Nc4 {[%emt 0:00:31]} 47. h5 {[%emt 0:01:31]} Nd6+ {[%emt 0:00:31]} 48. Ke6 {[%emt 0:01:00]} Nf7 {[%emt 0:00:21]} 49. g6 {[%emt 0:00:55]} Nh6 50. Kd5 {[%emt 0:00:27]} b6 {[%emt 0:00:59]} 51. Kc4 {[%emt 0:00:06]} a5 {[%emt 0:00:22]} 52. Kc3 {[%emt 0:00:14]} c5 {[%emt 0:00:29]} 53. Kb3 {[%emt 0:00:14]} b5 {[%emt 0:00:38]} 54. Kb2 {[%emt 0:00:20]} b4 {[%emt 0:00:39]} 55. Kb3 {[%emt 0:00:06]} Ng4 {[%emt 0:00:05]} 56. h6+ {[%emt 0:00:07]} Kxh6 {[%emt 0:00:22]} 57. g7 {[%emt 0:00:06]} Kxg7 {[%emt 0:00:06]} 58. Kb2 {[%emt 0:00:08]} c4 {[%emt 0:00:17]} 59. Ka2 {[%emt 0:00:11]} c3 {[%emt 0:00:20]} 60. Kb1 a4 {[%emt 0:01:06]} 0-1